[Event "Early-Titled-Tuesday-Blitz-July-09-2024"]
[Site "Chess.com"]
[Date "2024.07.09"]
[Round "11"]
[White "K_A_S_T_O_R"]
[Black "Zohid6"]
[Result "0-1"]
[WhiteElo "2855"]
[BlackElo "2982"]
[TimeControl "180+1"]
[EndTime "10:07:00 PDT"]
[Termination "Zohid6 won on time"]

1. e4 {[%clk 0:03:00.9]} 1... e5 {[%clk 0:02:57.8]} 2. Nf3 {[%clk 0:03:01.2]}
2... Nf6 {[%clk 0:02:57.2]} 3. d3 {[%clk 0:02:57]} 3... Nc6 {[%clk 0:02:57]} 4.
c3 {[%clk 0:02:54.6]} 4... d5 {[%clk 0:02:56.2]} 5. Nbd2 {[%clk 0:02:53.9]} 5...
Bc5 {[%clk 0:02:55.4]} 6. Be2 {[%clk 0:02:54.2]} 6... O-O {[%clk 0:02:47.6]} 7.
O-O {[%clk 0:02:51.8]} 7... a5 {[%clk 0:02:46.3]} 8. b3 {[%clk 0:02:50.9]} 8...
d4 {[%clk 0:02:44.8]} 9. cxd4 {[%clk 0:02:49.2]} 9... Nxd4 {[%clk 0:02:44.5]}
10. Bb2 {[%clk 0:02:48.6]} 10... Re8 {[%clk 0:02:41.4]} 11. Rc1 {[%clk
0:02:47.3]} 11... b6 {[%clk 0:02:29.2]} 12. Nc4 {[%clk 0:02:28.1]} 12... Nxf3+
{[%clk 0:02:25]} 13. Bxf3 {[%clk 0:02:27.7]} 13... Bd4 {[%clk 0:02:25.7]} 14.
Bxd4 {[%clk 0:02:25.3]} 14... Qxd4 {[%clk 0:02:26.6]} 15. Ne3 {[%clk 0:02:25.7]}
15... c5 {[%clk 0:02:23.9]} 16. Qc2 {[%clk 0:02:24.7]} 16... Ba6 {[%clk
0:02:21.3]} 17. Rfd1 {[%clk 0:02:24.5]} 17... Rad8 {[%clk 0:02:19.1]} 18. Be2
{[%clk 0:02:19.8]} 18... Qd6 {[%clk 0:02:17.3]} 19. h3 {[%clk 0:01:56.6]} 19...
g6 {[%clk 0:02:16.5]} 20. a3 {[%clk 0:01:53.4]} 20... Nd7 {[%clk 0:02:14.9]} 21.
Nd5 {[%clk 0:01:34.6]} 21... Bb7 {[%clk 0:02:07.1]} 22. Ne3 {[%clk 0:01:25.4]}
22... Nf8 {[%clk 0:02:04.8]} 23. Nc4 {[%clk 0:01:23.3]} 23... Qc7 {[%clk
0:02:03.5]} 24. b4 {[%clk 0:01:22.9]} 24... Ne6 {[%clk 0:01:56.7]} 25. bxa5
{[%clk 0:01:21.2]} 25... bxa5 {[%clk 0:01:50.8]} 26. Qc3 {[%clk 0:01:10.1]}
26... Nd4 {[%clk 0:01:43.6]} 27. Rd2 {[%clk 0:01:09.1]} 27... Ba6 {[%clk
0:01:37.8]} 28. Bd1 {[%clk 0:01:01.8]} 28... Bxc4 {[%clk 0:01:30.1]} 29. Qxc4
{[%clk 0:01:02.3]} 29... Rc8 {[%clk 0:01:30.5]} 30. Rb2 {[%clk 0:00:56.9]} 30...
Rb8 {[%clk 0:01:28.5]} 31. Rcb1 {[%clk 0:00:54.5]} 31... Rxb2 {[%clk 0:01:28.3]}
32. Rxb2 {[%clk 0:00:55]} 32... Rb8 {[%clk 0:01:29]} 33. Qc3 {[%clk 0:00:46.1]}
33... Rxb2 {[%clk 0:01:23.7]} 34. Qxb2 {[%clk 0:00:46]} 34... c4 {[%clk
0:01:15.7]} 35. dxc4 {[%clk 0:00:45]} 35... Qc5 {[%clk 0:01:07.2]} 36. Kh2
{[%clk 0:00:14.9]} 36... Kg7 {[%clk 0:01:06.1]} 37. Be2 {[%clk 0:00:14.1]} 37...
h5 {[%clk 0:01:02.3]} 38. Bd3 {[%clk 0:00:12]} 38... Ne6 {[%clk 0:01:01.3]} 39.
g3 {[%clk 0:00:11]} 39... h4 {[%clk 0:01:00.3]} 40. gxh4 {[%clk 0:00:09.3]}
40... Nf4 {[%clk 0:01:00.2]} 41. Bf1 {[%clk 0:00:09.9]} 41... Kh6 {[%clk
0:00:53.3]} 42. Kg3 {[%clk 0:00:10]} 42... Nh5+ {[%clk 0:00:51.9]} 43. Kf3
{[%clk 0:00:09.6]} 43... Nf4 {[%clk 0:00:51.3]} 44. Qc3 {[%clk 0:00:09.1]} 44...
Qd6 {[%clk 0:00:47.3]} 45. Kg3 {[%clk 0:00:07.3]} 45... Qd1 {[%clk 0:00:46.1]}
0-1

[Event "Early-Titled-Tuesday-Blitz-July-09-2024"]
[Site "Chess.com"]
[Date "2024.07.09"]
[Round "11"]
[White "Iball95"]
[Black "BeanScreen"]
[Result "1-0"]
[WhiteElo "2915"]
[BlackElo "2713"]
[TimeControl "180+1"]
[EndTime "10:07:06 PDT"]
[Termination "Iball95 won by checkmate"]

1. e4 {[%clk 0:03:00.7]} 1... e5 {[%clk 0:03:00.3]} 2. Nf3 {[%clk 0:02:59.8]}
2... Nc6 {[%clk 0:03:00.9]} 3. Nc3 {[%clk 0:03:00.2]} 3... Nf6 {[%clk
0:03:00.8]} 4. Bb5 {[%clk 0:03:00.6]} 4... Bd6 {[%clk 0:02:57.8]} 5. a3 {[%clk
0:03:00.5]} 5... O-O {[%clk 0:02:51.5]} 6. d3 {[%clk 0:03:00.8]} 6... a6 {[%clk
0:02:50.7]} 7. Bc4 {[%clk 0:03:00.8]} 7... b5 {[%clk 0:02:50.4]} 8. Ba2 {[%clk
0:02:57.6]} 8... Be7 {[%clk 0:02:46.5]} 9. Nd5 {[%clk 0:02:56.1]} 9... d6 {[%clk
0:02:43.3]} 10. h3 {[%clk 0:02:55.1]} 10... Be6 {[%clk 0:02:41]} 11. O-O {[%clk
0:02:52.7]} 11... Re8 {[%clk 0:02:16.6]} 12. Be3 {[%clk 0:02:49.9]} 12... Bf8
{[%clk 0:02:14.8]} 13. Re1 {[%clk 0:02:35.2]} 13... Bxd5 {[%clk 0:02:12.5]} 14.
exd5 {[%clk 0:02:36.1]} 14... Ne7 {[%clk 0:02:12.9]} 15. c4 {[%clk 0:02:35.6]}
15... Nf5 {[%clk 0:02:07.6]} 16. Bd2 {[%clk 0:02:31.6]} 16... bxc4 {[%clk
0:02:05.2]} 17. dxc4 {[%clk 0:02:29.9]} 17... e4 {[%clk 0:02:05.4]} 18. Nh2
{[%clk 0:02:27.1]} 18... g6 {[%clk 0:01:36.1]} 19. Rc1 {[%clk 0:02:26]} 19...
Bg7 {[%clk 0:01:33.4]} 20. Bb1 {[%clk 0:02:25.5]} 20... Nd7 {[%clk 0:01:07.9]}
21. Bc3 {[%clk 0:02:11.4]} 21... Bxc3 {[%clk 0:01:04.7]} 22. Rxc3 {[%clk
0:02:12.3]} 22... Nc5 {[%clk 0:00:41.4]} 23. Nf1 {[%clk 0:01:43.3]} 23... Qf6
{[%clk 0:00:35.3]} 24. Qd2 {[%clk 0:01:36.2]} 24... Na4 {[%clk 0:00:29.7]} 25.
Rb3 {[%clk 0:01:17.8]} 25... Nd4 {[%clk 0:00:26.5]} 26. Rbe3 {[%clk 0:01:09.1]}
26... Qg5 {[%clk 0:00:20]} 27. Qxd4 {[%clk 0:01:05.8]} 27... Nc5 {[%clk
0:00:15.1]} 28. b4 {[%clk 0:01:02.6]} 28... Nd7 {[%clk 0:00:11.5]} 29. Rxe4
{[%clk 0:01:01.1]} 29... Ne5 {[%clk 0:00:11.9]} 30. Ng3 {[%clk 0:00:56.7]} 30...
f5 {[%clk 0:00:11.3]} 31. Rxe5 {[%clk 0:00:32]} 31... dxe5 {[%clk 0:00:10.2]}
32. Qc5 {[%clk 0:00:32.1]} 32... Re7 {[%clk 0:00:07]} 33. d6 {[%clk 0:00:32.4]}
33... cxd6 {[%clk 0:00:07]} 34. Qd5+ {[%clk 0:00:32.8]} 34... Kg7 {[%clk
0:00:06.5]} 35. Qxa8 {[%clk 0:00:33.4]} 35... e4 {[%clk 0:00:05.7]} 36. Qd5
{[%clk 0:00:32.3]} 36... e3 {[%clk 0:00:05.4]} 37. Qd4+ {[%clk 0:00:29.3]} 37...
Re5 {[%clk 0:00:03.4]} 38. Rxe3 {[%clk 0:00:29.5]} 38... f4 {[%clk 0:00:03.5]}
39. Rxe5 {[%clk 0:00:29.2]} 39... dxe5 {[%clk 0:00:04.4]} 40. Qd7+ {[%clk
0:00:29.6]} 40... Kh6 {[%clk 0:00:04.5]} 41. Ne4 {[%clk 0:00:30.2]} 41... Qh5
{[%clk 0:00:03.5]} 42. Qd8 {[%clk 0:00:28.5]} 42... f3 {[%clk 0:00:02.3]} 43.
Qf8# {[%clk 0:00:28.4]} 1-0

[Event "Early-Titled-Tuesday-Blitz-July-09-2024"]
[Site "Chess.com"]
[Date "2024.07.09"]
[Round "11"]
[White "AndresDelgado77"]
[Black "CristianS27"]
[Result "0-1"]
[WhiteElo "2324"]
[BlackElo "2492"]
[TimeControl "180+1"]
[EndTime "10:07:06 PDT"]
[Termination "CristianS27 won on time"]

1. e4 {[%clk 0:02:59.5]} 1... e5 {[%clk 0:02:59.8]} 2. Nc3 {[%clk 0:02:55.6]}
2... Nf6 {[%clk 0:02:59.7]} 3. d4 {[%clk 0:02:51.3]} 3... exd4 {[%clk
0:02:56.1]} 4. Qxd4 {[%clk 0:02:51.5]} 4... Nc6 {[%clk 0:02:54.4]} 5. Qc4 {[%clk
0:02:51.7]} 5... Bb4 {[%clk 0:02:41.1]} 6. Bd2 {[%clk 0:02:45.1]} 6... O-O
{[%clk 0:02:40.7]} 7. O-O-O {[%clk 0:02:30.9]} 7... Re8 {[%clk 0:02:39.3]} 8. f3
{[%clk 0:02:22.3]} 8... d6 {[%clk 0:02:37.4]} 9. Nge2 {[%clk 0:02:17.7]} 9...
Be6 {[%clk 0:02:35.5]} 10. Qb5 {[%clk 0:02:17.3]} 10... a6 {[%clk 0:02:33.5]}
11. Qg5 {[%clk 0:02:12.6]} 11... a5 {[%clk 0:02:20.6]} 12. Nf4 {[%clk
0:02:08.3]} 12... a4 {[%clk 0:02:18.8]} 13. a3 {[%clk 0:02:00.4]} 13... Bc5
{[%clk 0:02:18.8]} 14. Nxe6 {[%clk 0:01:49.8]} 14... fxe6 {[%clk 0:02:19.7]} 15.
Bc4 {[%clk 0:01:48.6]} 15... Kh8 {[%clk 0:02:20.3]} 16. Qh4 {[%clk 0:01:39.6]}
16... Ne5 {[%clk 0:02:14.5]} 17. Ba2 {[%clk 0:01:07]} 17... c6 {[%clk
0:02:14.7]} 18. f4 {[%clk 0:00:49.1]} 18... Ng6 {[%clk 0:02:13.6]} 19. Qg3
{[%clk 0:00:36.6]} 19... b5 {[%clk 0:02:09.9]} 20. e5 {[%clk 0:00:33.8]} 20...
Nd5 {[%clk 0:02:03.8]} 21. Ne4 {[%clk 0:00:30.3]} 21... Nge7 {[%clk 0:01:49.3]}
22. Ng5 {[%clk 0:00:22.9]} 22... Nf5 {[%clk 0:01:30.7]} 23. Nf7+ {[%clk
0:00:14.7]} 23... Kg8 {[%clk 0:01:30.7]} 24. Nxd8 {[%clk 0:00:14.9]} 24... Nxg3
{[%clk 0:01:31.2]} 25. hxg3 {[%clk 0:00:14]} 25... Raxd8 {[%clk 0:01:30.2]} 26.
exd6 {[%clk 0:00:12.4]} 26... Rxd6 {[%clk 0:01:23.3]} 27. c4 {[%clk 0:00:12.3]}
27... Ne3 {[%clk 0:01:10.9]} 28. Rde1 {[%clk 0:00:10]} 28... Nxc4 {[%clk
0:01:03.4]} 29. Bxc4 {[%clk 0:00:10.3]} 29... bxc4 {[%clk 0:01:04.3]} 30. Re5
{[%clk 0:00:10.7]} 30... Bd4 {[%clk 0:00:59.4]} 31. Ra5 {[%clk 0:00:11]} 31...
Bxb2+ {[%clk 0:00:59.1]} 32. Kc2 {[%clk 0:00:10.7]} 32... Red8 {[%clk
0:00:40.7]} 33. Bb4 {[%clk 0:00:08.8]} 33... c3 {[%clk 0:00:38.9]} 34. Bxd6
{[%clk 0:00:07.7]} 34... Rxd6 {[%clk 0:00:37.7]} 35. Rxa4 {[%clk 0:00:05.5]}
35... Rd2+ {[%clk 0:00:37.5]} 36. Kb3 {[%clk 0:00:05.6]} 36... Rxg2 {[%clk
0:00:35.7]} 37. Rh3 {[%clk 0:00:04.6]} 37... Ba1 {[%clk 0:00:33.8]} 38. Rc4
{[%clk 0:00:02.2]} 38... Rb2+ {[%clk 0:00:30.6]} 0-1

[Event "Early-Titled-Tuesday-Blitz-July-09-2024"]
[Site "Chess.com"]
[Date "2024.07.09"]
[Round "11"]
[White "Oleg_Papayan"]
[Black "Ordekalog"]
[Result "0-1"]
[WhiteElo "2603"]
[BlackElo "2726"]
[TimeControl "180+1"]
[EndTime "10:07:07 PDT"]
[Termination "Ordekalog won on time"]

1. d4 {[%clk 0:03:00.9]} 1... d5 {[%clk 0:02:59.3]} 2. Nc3 {[%clk 0:03:01.3]}
2... Nf6 {[%clk 0:02:58.2]} 3. Bf4 {[%clk 0:03:01.7]} 3... c6 {[%clk 0:02:56.4]}
4. Nf3 {[%clk 0:03:01.1]} 4... Bf5 {[%clk 0:02:56.1]} 5. e3 {[%clk 0:02:58.7]}
5... e6 {[%clk 0:02:55.9]} 6. Ne5 {[%clk 0:02:58.9]} 6... Bb4 {[%clk 0:02:55.2]}
7. g4 {[%clk 0:02:39]} 7... Bg6 {[%clk 0:02:41.7]} 8. f3 {[%clk 0:02:39.4]} 8...
Nbd7 {[%clk 0:02:39]} 9. h4 {[%clk 0:02:39.6]} 9... Qa5 {[%clk 0:02:29.2]} 10.
Qd2 {[%clk 0:01:59.1]} 10... Nxe5 {[%clk 0:02:09.9]} 11. dxe5 {[%clk 0:01:57.7]}
11... d4 {[%clk 0:02:10.8]} 12. Qxd4 {[%clk 0:00:49.8]} 12... Nd5 {[%clk
0:02:10.4]} 13. a3 {[%clk 0:00:50.3]} 13... Bxc2 {[%clk 0:02:02.7]} 14. Rc1
{[%clk 0:00:40.2]} 14... Bxc3+ {[%clk 0:01:30]} 15. bxc3 {[%clk 0:00:40.5]}
15... Bb3 {[%clk 0:01:22.1]} 16. Kf2 {[%clk 0:00:28.8]} 16... Rd8 {[%clk
0:01:16.2]} 17. Bg5 {[%clk 0:00:24.5]} 17... Rd7 {[%clk 0:01:14]} 18. Be2 {[%clk
0:00:15.1]} 18... h6 {[%clk 0:01:13.2]} 19. Bf4 {[%clk 0:00:15.6]} 19... c5
{[%clk 0:00:59.4]} 20. Qe4 {[%clk 0:00:09.4]} 20... Nxc3 {[%clk 0:00:58.1]} 21.
Rxc3 {[%clk 0:00:09]} 21... Qxc3 {[%clk 0:00:58.8]} 22. Bb5 {[%clk 0:00:09.5]}
22... O-O {[%clk 0:00:37.4]} 23. Bxd7 {[%clk 0:00:05.7]} 23... Qd2+ {[%clk
0:00:37.8]} 24. Kg3 {[%clk 0:00:06.3]} 24... Qxd7 {[%clk 0:00:38.6]} 25. g5
{[%clk 0:00:04.7]} 25... h5 {[%clk 0:00:39.1]} 26. g6 {[%clk 0:00:04.8]} 26...
Bd5 {[%clk 0:00:37.2]} 27. gxf7+ {[%clk 0:00:04.9]} 27... Qxf7 {[%clk
0:00:36.7]} 28. Qc2 {[%clk 0:00:04.3]} 28... c4 {[%clk 0:00:36]} 29. Rg1 {[%clk
0:00:02.8]} 29... Kh8 {[%clk 0:00:32.9]} 30. Kf2 {[%clk 0:00:03]} 30... b5
{[%clk 0:00:32]} 31. Rg5 {[%clk 0:00:02.8]} 31... a5 {[%clk 0:00:30.4]} 32. Qc3
{[%clk 0:00:01.6]} 32... Ra8 {[%clk 0:00:24.3]} 33. Qb2 {[%clk 0:00:01.1]} 33...
Bc6 {[%clk 0:00:23.5]} 34. Qd4 {[%clk 0:00:01]} 34... Kg8 {[%clk 0:00:22.5]} 35.
Qd6 {[%clk 0:00:01.1]} 35... Qd7 {[%clk 0:00:22]} 36. Qc5 {[%clk 0:00:01.1]}
36... Rc8 {[%clk 0:00:19.1]} 37. Rxh5 {[%clk 0:00:01.5]} 37... Bxf3 {[%clk
0:00:18.5]} 0-1

[Event "Early-Titled-Tuesday-Blitz-July-09-2024"]
[Site "Chess.com"]
[Date "2024.07.09"]
[Round "11"]
[White "Meri-Arabidze"]
[Black "Erdnya15"]
[Result "0-1"]
[WhiteElo "2687"]
[BlackElo "2618"]
[TimeControl "180+1"]
[EndTime "10:07:13 PDT"]
[Termination "Erdnya15 won on time"]

1. d4 {[%clk 0:03:00.9]} 1... d5 {[%clk 0:02:56.2]} 2. c4 {[%clk 0:03:01.3]}
2... c6 {[%clk 0:02:33.3]} 3. Nf3 {[%clk 0:03:00.5]} 3... Nf6 {[%clk 0:02:33.2]}
4. g3 {[%clk 0:03:00.9]} 4... g6 {[%clk 0:02:30.4]} 5. Bg2 {[%clk 0:02:58.7]}
5... Bg7 {[%clk 0:02:27.5]} 6. O-O {[%clk 0:02:59.2]} 6... dxc4 {[%clk 0:02:27]}
7. a4 {[%clk 0:02:58.4]} 7... Ne4 {[%clk 0:02:20.1]} 8. a5 {[%clk 0:02:53]} 8...
O-O {[%clk 0:02:07.2]} 9. Nc3 {[%clk 0:02:53]} 9... Nd6 {[%clk 0:02:05.2]} 10.
e4 {[%clk 0:02:50.9]} 10... Bg4 {[%clk 0:02:05.4]} 11. Be3 {[%clk 0:02:50.4]}
11... Qc8 {[%clk 0:02:05.2]} 12. Re1 {[%clk 0:02:43.9]} 12... Na6 {[%clk
0:01:57.4]} 13. Qe2 {[%clk 0:02:32]} 13... Nb4 {[%clk 0:01:49.5]} 14. Ra4 {[%clk
0:01:47.6]} 14... Nd3 {[%clk 0:01:41.8]} 15. Rea1 {[%clk 0:01:47]} 15... e5
{[%clk 0:01:36]} 16. d5 {[%clk 0:01:32]} 16... cxd5 {[%clk 0:01:32.6]} 17. Nxd5
{[%clk 0:01:32.6]} 17... Qd8 {[%clk 0:01:32.4]} 18. h3 {[%clk 0:01:02.3]} 18...
Bxf3 {[%clk 0:01:27.1]} 19. Bxf3 {[%clk 0:01:02.2]} 19... f5 {[%clk 0:01:07.1]}
20. exf5 {[%clk 0:00:43.1]} 20... gxf5 {[%clk 0:01:08]} 21. Bg2 {[%clk
0:00:19.5]} 21... e4 {[%clk 0:00:57.9]} 22. Nc3 {[%clk 0:00:19.7]} 22... Qe7
{[%clk 0:00:49.9]} 23. b3 {[%clk 0:00:13.7]} 23... Bxc3 {[%clk 0:00:49.4]} 24.
Rb1 {[%clk 0:00:11.9]} 24... cxb3 {[%clk 0:00:43.3]} 25. Rxb3 {[%clk 0:00:11.7]}
25... Bg7 {[%clk 0:00:44]} 26. Bd4 {[%clk 0:00:04.8]} 26... Nc1 {[%clk
0:00:42.5]} 27. Qc2 {[%clk 0:00:03.1]} 27... Nxb3 {[%clk 0:00:42.2]} 28. Qxb3+
{[%clk 0:00:03.4]} 28... Qf7 {[%clk 0:00:42.8]} 29. Qb2 {[%clk 0:00:02.9]} 29...
Bxd4 {[%clk 0:00:39.8]} 30. Qxd4 {[%clk 0:00:03.8]} 30... Rad8 {[%clk
0:00:36.5]} 31. Qxa7 {[%clk 0:00:03.7]} 31... Qd5 {[%clk 0:00:34.4]} 32. Rb4
{[%clk 0:00:02.8]} 32... f4 {[%clk 0:00:31.9]} 33. gxf4 {[%clk 0:00:02.4]} 33...
Rxf4 {[%clk 0:00:32.8]} 34. Rxb7 {[%clk 0:00:02.3]} 34... Qxb7 {[%clk
0:00:31.9]} 35. Qe3 {[%clk 0:00:01.9]} 35... Rff8 {[%clk 0:00:27.1]} 36. Qg5+
{[%clk 0:00:01.3]} 36... Qg7 {[%clk 0:00:26.6]} 37. Qd5+ {[%clk 0:00:02]} 37...
Kh8 {[%clk 0:00:26.9]} 38. Kh2 {[%clk 0:00:02.2]} 38... Nf5 {[%clk 0:00:25.7]}
39. Qxe4 {[%clk 0:00:02]} 39... Qc7+ {[%clk 0:00:25.3]} 40. Kh1 {[%clk
0:00:01.5]} 40... Rd1+ {[%clk 0:00:25.1]} 41. Bf1 {[%clk 0:00:01.5]} 41... Ng3+
{[%clk 0:00:25]} 0-1

[Event "Early-Titled-Tuesday-Blitz-July-09-2024"]
[Site "Chess.com"]
[Date "2024.07.09"]
[Round "11"]
[White "Slovineanu"]
[Black "Chessdude1987"]
[Result "0-1"]
[WhiteElo "2524"]
[BlackElo "2357"]
[TimeControl "180+1"]
[EndTime "10:07:15 PDT"]
[Termination "Chessdude1987 won on time"]

1. d4 {[%clk 0:02:57.9]} 1... e6 {[%clk 0:03:00.3]} 2. c4 {[%clk 0:02:56.7]}
2... f5 {[%clk 0:03:00.9]} 3. Nf3 {[%clk 0:02:54.4]} 3... Nf6 {[%clk 0:03:01.4]}
4. g3 {[%clk 0:02:52.1]} 4... Be7 {[%clk 0:03:01.9]} 5. Bg2 {[%clk 0:02:52.2]}
5... O-O {[%clk 0:03:02.5]} 6. O-O {[%clk 0:02:52.2]} 6... d6 {[%clk 0:03:03.1]}
7. b3 {[%clk 0:02:47.7]} 7... Ne4 {[%clk 0:03:03.3]} 8. Bb2 {[%clk 0:02:47.3]}
8... Bf6 {[%clk 0:03:02]} 9. Nc3 {[%clk 0:02:43]} 9... Nxc3 {[%clk 0:03:00.7]}
10. Bxc3 {[%clk 0:02:42.7]} 10... Qe8 {[%clk 0:02:57.7]} 11. Qc2 {[%clk
0:02:38.1]} 11... e5 {[%clk 0:02:56.5]} 12. e3 {[%clk 0:02:15.3]} 12... c5
{[%clk 0:02:54.3]} 13. dxc5 {[%clk 0:02:08.4]} 13... dxc5 {[%clk 0:02:54.4]} 14.
Rfd1 {[%clk 0:02:07.7]} 14... Nc6 {[%clk 0:02:53.9]} 15. Rd5 {[%clk 0:02:03.6]}
15... e4 {[%clk 0:02:41.2]} 16. Nd2 {[%clk 0:01:48.9]} 16... Nb4 {[%clk
0:02:41]} 17. Bxb4 {[%clk 0:01:42.3]} 17... Bxa1 {[%clk 0:02:37.4]} 18. Bxc5
{[%clk 0:01:37.5]} 18... Rf7 {[%clk 0:02:37]} 19. Bd4 {[%clk 0:01:23.6]} 19...
Bxd4 {[%clk 0:02:31.3]} 20. Rxd4 {[%clk 0:01:24.5]} 20... Bd7 {[%clk 0:02:27.3]}
21. Bf1 {[%clk 0:01:21.5]} 21... Be6 {[%clk 0:02:20.8]} 22. c5 {[%clk
0:01:12.9]} 22... Rd8 {[%clk 0:02:16]} 23. Rxd8 {[%clk 0:00:56.6]} 23... Qxd8
{[%clk 0:02:16.1]} 24. Nc4 {[%clk 0:00:56.3]} 24... Rc7 {[%clk 0:02:06.9]} 25.
b4 {[%clk 0:00:12.8]} 25... b6 {[%clk 0:02:02.8]} 26. a4 {[%clk 0:00:13.2]}
26... bxc5 {[%clk 0:02:02.5]} 27. b5 {[%clk 0:00:13.6]} 27... Bxc4 {[%clk
0:01:57.5]} 28. Bxc4+ {[%clk 0:00:14.5]} 28... Kh8 {[%clk 0:01:57.3]} 29. Qc3
{[%clk 0:00:13.3]} 29... Qf6 {[%clk 0:01:52.2]} 30. Qb3 {[%clk 0:00:12.3]} 30...
Qa1+ {[%clk 0:01:46.3]} 31. Kg2 {[%clk 0:00:12.1]} 31... Qf6 {[%clk 0:01:38.2]}
32. a5 {[%clk 0:00:11.4]} 32... Rb7 {[%clk 0:01:35.8]} 33. h4 {[%clk 0:00:08.8]}
33... h6 {[%clk 0:01:32.7]} 34. Bd5 {[%clk 0:00:09.1]} 34... Rb8 {[%clk
0:01:31.4]} 35. Qc4 {[%clk 0:00:09.5]} 35... Qd6 {[%clk 0:01:24.9]} 36. Bc6
{[%clk 0:00:06]} 36... a6 {[%clk 0:01:16.8]} 37. Qf7 {[%clk 0:00:02.5]} 37...
axb5 {[%clk 0:01:08.5]} 38. Bd5 {[%clk 0:00:01.4]} 38... Rf8 {[%clk 0:01:00.1]}
39. Qb7 {[%clk 0:00:01.9]} 39... Re8 {[%clk 0:00:48.3]} 40. a6 {[%clk 0:00:01]}
40... Qb8 {[%clk 0:00:29.1]} 41. a7 {[%clk 0:00:01]} 41... Qxb7 {[%clk
0:00:28.8]} 42. Bxb7 {[%clk 0:00:01.9]} 42... c4 {[%clk 0:00:28.5]} 43. Bc6
{[%clk 0:00:01.1]} 43... b4 {[%clk 0:00:26.7]} 0-1

[Event "Early-Titled-Tuesday-Blitz-July-09-2024"]
[Site "Chess.com"]
[Date "2024.07.09"]
[Round "11"]
[White "WilsonPalencia21"]
[Black "Sasha_Solovev_777"]
[Result "1-0"]
[WhiteElo "2577"]
[BlackElo "2290"]
[TimeControl "180+1"]
[EndTime "10:07:15 PDT"]
[Termination "WilsonPalencia21 won by resignation"]

1. d4 {[%clk 0:02:56.8]} 1... Nf6 {[%clk 0:02:59.3]} 2. c4 {[%clk 0:02:56.5]}
2... g6 {[%clk 0:02:59.6]} 3. Nf3 {[%clk 0:02:56.2]} 3... Bg7 {[%clk 0:02:59.4]}
4. Nc3 {[%clk 0:02:57.1]} 4... O-O {[%clk 0:02:59.6]} 5. e4 {[%clk 0:02:57]}
5... d6 {[%clk 0:02:59.9]} 6. Be2 {[%clk 0:02:57.2]} 6... e5 {[%clk 0:03:00.2]}
7. O-O {[%clk 0:02:57]} 7... h6 {[%clk 0:03:00.6]} 8. d5 {[%clk 0:02:49.5]} 8...
Na6 {[%clk 0:02:59.8]} 9. Qc2 {[%clk 0:02:45.1]} 9... Nc5 {[%clk 0:02:54.5]} 10.
b4 {[%clk 0:02:43.9]} 10... Ncd7 {[%clk 0:02:54.5]} 11. Rb1 {[%clk 0:02:40.9]}
11... Nh5 {[%clk 0:02:50.9]} 12. g3 {[%clk 0:02:37.1]} 12... f5 {[%clk
0:02:19.7]} 13. exf5 {[%clk 0:02:36.4]} 13... gxf5 {[%clk 0:02:20]} 14. Nh4
{[%clk 0:02:36.4]} 14... Qe8 {[%clk 0:02:13.6]} 15. Nxf5 {[%clk 0:02:33.8]}
15... Ndf6 {[%clk 0:02:07.6]} 16. Nxh6+ {[%clk 0:02:30.7]} 16... Kh8 {[%clk
0:02:04.3]} 17. Nf5 {[%clk 0:02:23.8]} 17... Qg6 {[%clk 0:01:51.4]} 18. Bd3
{[%clk 0:02:14.6]} 18... e4 {[%clk 0:01:51.5]} 19. Nh4 {[%clk 0:02:14.4]} 19...
Qg4 {[%clk 0:01:30.3]} 20. Nxe4 {[%clk 0:02:09.8]} 20... Qh3 {[%clk 0:01:20.9]}
21. f3 {[%clk 0:02:01.6]} 21... Nxe4 {[%clk 0:01:13]} 22. Ng6+ {[%clk
0:01:45.2]} 22... Kg8 {[%clk 0:01:02.3]} 23. Bb2 {[%clk 0:01:03.3]} 23... Nef6
{[%clk 0:00:38.1]} 24. Nxf8 {[%clk 0:00:44.6]} 24... Kxf8 {[%clk 0:00:37.4]} 25.
Rbe1 {[%clk 0:00:33.8]} 25... Bd7 {[%clk 0:00:36.6]} 26. Bg6 {[%clk 0:00:32.3]}
26... Be8 {[%clk 0:00:17.3]} 27. Bf5 {[%clk 0:00:31.2]} 27... Bg6 {[%clk
0:00:13.9]} 28. Bxg6 {[%clk 0:00:29.9]} 28... Nxg3 {[%clk 0:00:14.1]} 29. hxg3
{[%clk 0:00:28.3]} 29... Qxg3+ {[%clk 0:00:15]} 30. Qg2 {[%clk 0:00:28.1]} 30...
Qf4 {[%clk 0:00:15.3]} 31. Bb1 {[%clk 0:00:20.5]} 31... Kf7 {[%clk 0:00:13.6]}
32. Qg6+ {[%clk 0:00:18.8]} 32... Kf8 {[%clk 0:00:14]} 33. Kg2 {[%clk 0:00:18]}
33... Qd2+ {[%clk 0:00:10.1]} 34. Kh1 {[%clk 0:00:15.7]} 34... Qxb2 {[%clk
0:00:10.3]} 35. Re6 {[%clk 0:00:13]} 35... Qd4 {[%clk 0:00:08.8]} 36. Rfe1
{[%clk 0:00:12.8]} 36... Qh4+ {[%clk 0:00:08.1]} 37. Kg2 {[%clk 0:00:13.4]}
37... Qh5 {[%clk 0:00:06.5]} 38. Rxf6+ {[%clk 0:00:13.1]} 38... Bxf6 {[%clk
0:00:06.2]} 39. Qxh5 {[%clk 0:00:13.6]} 1-0